[Event "Titled Tuesday Blitz July 4 Early 2023"]
[White "Sargsyan, Anna M."]
[Black "Avazkhonov, Alikhon"]
[WhiteFideId "13308130"]
[BlackFideId "14208504"]
[WhiteElo "2594"]
[BlackElo "2429"]
[Result "1-0"]
[Round "4"]
[TimeControl "180+2"]
[Date "2023.07.04"]
[WhiteClock "0:00:50"]
[BlackClock "0:00:19"]
[Board "119"]

1. d4 {[%clk 0:03:00]}  Nf6 {[%clk 0:02:57]} 2. c4 {[%clk 0:03:01]}  g6 {[%clk 0:02:57]} 3. g3 {[%clk 0:03:01]}  Bg7 {[%clk 0:02:53]} 4. Bg2 {[%clk 0:03:01]}  O-O {[%clk 0:02:54]} 5. Nc3 {[%clk 0:03:00]}  d6 {[%clk 0:02:54]} 6. Nf3 {[%clk 0:03:01]}  Nbd7 {[%clk 0:02:54]} 7. O-O {[%clk 0:03:01]}  e5 {[%clk 0:02:54]} 8. h3 {[%clk 0:02:59]}  exd4 {[%clk 0:02:54]} 9. Nxd4 {[%clk 0:03:00]}  Re8 {[%clk 0:02:55]} 10. e4 {[%clk 0:03:01]}  a6 {[%clk 0:02:55]} 11. Re1 {[%clk 0:03:01]}  Rb8 {[%clk 0:02:55]} 12. Be3 {[%clk 0:02:57]}  c5 {[%clk 0:02:55]} 13. Nc2 {[%clk 0:02:54]}  Ne5 {[%clk 0:02:56]} 14. b3 {[%clk 0:02:52]}  b5 {[%clk 0:02:56]} 15. f4 {[%clk 0:02:45]}  Ned7 {[%clk 0:02:49]} 16. Qxd6 {[%clk 0:02:06]}  b4 {[%clk 0:02:49]} 17. Nd5 {[%clk 0:02:06]}  Nxe4 {[%clk 0:02:49]} 18. Bxe4 {[%clk 0:02:07]}  Bxa1 {[%clk 0:02:40]} 19. Bxc5 {[%clk 0:01:36]}  Nxc5 {[%clk 0:01:37]} 20. Qxb8 {[%clk 0:01:27]}  Bg7 {[%clk 0:01:22]} 21. Bg2 {[%clk 0:01:27]}  Bd4+ {[%clk 0:01:03]} 22. Kh2 {[%clk 0:01:25]}  Rxe1 {[%clk 0:01:02]} 23. Nxe1 {[%clk 0:01:26]}  Kg7 {[%clk 0:01:00]} 24. Nf3 {[%clk 0:00:59]}  Bc3 {[%clk 0:00:51]} 25. Nb6 {[%clk 0:00:56]}  Nd7 {[%clk 0:00:38]} 26. Qxc8 {[%clk 0:00:56]}  Qxb6 {[%clk 0:00:24]} 27. Qxd7 {[%clk 0:00:56]}  Qf2 {[%clk 0:00:19]} 28. Ne5 {[%clk 0:00:50]} 1-0


[Site "https://www.chess.com"]

[Event "Titled Tuesday Blitz July 4 Early 2023"]
[White "Mikhaylova, Irina"]
[Black "Mortazavi, Ali"]
[WhiteFideId "4109040"]
[BlackFideId "401323"]
[WhiteElo "2336"]
[BlackElo "2553"]
[Result "0-1"]
[Round "4"]
[TimeControl "180+2"]
[Date "2023.07.04"]
[WhiteClock "0:00:36"]
[BlackClock "0:01:34"]
[Board "126"]

1. Nf3 {[%clk 0:03:00]}  Nf6 {[%clk 0:02:59]} 2. c4 {[%clk 0:03:00]}  g6 {[%clk 0:03:00]} 3. Nc3 {[%clk 0:03:00]}  Bg7 {[%clk 0:03:00]} 4. e4 {[%clk 0:03:01]}  d6 {[%clk 0:03:01]} 5. d4 {[%clk 0:03:01]}  O-O {[%clk 0:03:02]} 6. Be2 {[%clk 0:03:01]}  Bg4 {[%clk 0:03:03]} 7. Be3 {[%clk 0:03:00]}  Nbd7 {[%clk 0:03:03]} 8. O-O {[%clk 0:03:00]}  e5 {[%clk 0:03:03]} 9. d5 {[%clk 0:03:00]}  a5 {[%clk 0:03:04]} 10. a3 {[%clk 0:02:59]}  b6 {[%clk 0:03:03]} 11. b4 {[%clk 0:02:58]}  Nh5 {[%clk 0:03:02]} 12. h3 {[%clk 0:02:53]}  Bxf3 {[%clk 0:03:02]} 13. Bxf3 {[%clk 0:02:53]}  Nf4 {[%clk 0:03:03]} 14. Qd2 {[%clk 0:02:47]}  f5 {[%clk 0:03:03]} 15. Rac1 {[%clk 0:02:40]}  Kh8 {[%clk 0:02:57]} 16. exf5 {[%clk 0:02:38]}  axb4 {[%clk 0:02:49]} 17. axb4 {[%clk 0:02:36]}  gxf5 {[%clk 0:02:45]} 18. Nb5 {[%clk 0:02:06]}  Ng6 {[%clk 0:02:41]} 19. Bg5 {[%clk 0:02:03]}  Bf6 {[%clk 0:02:39]} 20. Bxf6+ {[%clk 0:02:00]}  Rxf6 {[%clk 0:02:36]} 21. g3 {[%clk 0:01:57]}  e4 {[%clk 0:02:27]} 22. Bg2 {[%clk 0:01:57]}  Nge5 {[%clk 0:02:27]} 23. f4 {[%clk 0:01:31]}  Nd3 {[%clk 0:02:15]} 24. Ra1 {[%clk 0:01:31]}  Rc8 {[%clk 0:02:11]} 25. Ra7 {[%clk 0:01:22]}  h5 {[%clk 0:02:10]} 26. h4 {[%clk 0:01:15]}  Qg8 {[%clk 0:02:02]} 27. Kh2 {[%clk 0:01:09]}  Rg6 {[%clk 0:02:02]} 28. Bh3 {[%clk 0:01:01]}  Rxg3 {[%clk 0:01:54]} 29. Bxf5 {[%clk 0:00:57]}  Nf6 {[%clk 0:01:35]} 30. Qb2 {[%clk 0:00:36]}  Nxb2 {[%clk 0:01:34]} 0-1


[Site "https://www.chess.com"]

[Event "Titled Tuesday Blitz July 4 Early 2023"]
[White "Vasques, Antonio Pedro Freixial"]
[Black "Golubev, Mikhail"]
[WhiteFideId "1908332"]
[BlackFideId "14100983"]
[WhiteElo "2314"]
[BlackElo "2552"]
[Result "0-1"]
[Round "4"]
[TimeControl "180+2"]
[Date "2023.07.04"]
[WhiteClock "0:00:15"]
[BlackClock "0:00:20"]
[Board "127"]

1. e4 {[%clk 0:02:54]}  c5 {[%clk 0:02:59]} 2. Nc3 {[%clk 0:02:53]}  e6 {[%clk 0:02:58]} 3. Nf3 {[%clk 0:02:52]}  a6 {[%clk 0:02:58]} 4. d4 {[%clk 0:02:53]}  cxd4 {[%clk 0:02:58]} 5. Nxd4 {[%clk 0:02:54]}  Qc7 {[%clk 0:02:57]} 6. g3 {[%clk 0:02:54]}  Nf6 {[%clk 0:02:50]} 7. Bg2 {[%clk 0:02:53]}  d6 {[%clk 0:02:51]} 8. O-O {[%clk 0:02:53]}  Bd7 {[%clk 0:02:48]} 9. a4 {[%clk 0:02:51]}  Nc6 {[%clk 0:02:47]} 10. Nb3 {[%clk 0:02:51]}  Be7 {[%clk 0:02:46]} 11. a5 {[%clk 0:02:49]}  O-O {[%clk 0:02:42]} 12. g4 {[%clk 0:02:49]}  d5 {[%clk 0:02:30]} 13. exd5 {[%clk 0:02:38]}  exd5 {[%clk 0:02:29]} 14. Nxd5 {[%clk 0:02:38]}  Nxd5 {[%clk 0:02:28]} 15. Bxd5 {[%clk 0:02:37]}  Rad8 {[%clk 0:02:23]} 16. Bg2 {[%clk 0:02:25]}  Nb4 {[%clk 0:02:03]} 17. Bd2 {[%clk 0:02:21]}  Bc6 {[%clk 0:01:33]} 18. Qe2 {[%clk 0:01:38]}  Bb5 {[%clk 0:01:26]} 19. c4 {[%clk 0:01:18]}  Bxc4 {[%clk 0:01:23]} 20. Rfc1 {[%clk 0:01:17]}  Nd3 {[%clk 0:01:14]} 21. Rc3 {[%clk 0:01:10]}  Bf6 {[%clk 0:01:08]} 22. Rc2 {[%clk 0:00:46]}  Rfe8 {[%clk 0:00:53]} 23. Qf3 {[%clk 0:00:46]}  Ne5 {[%clk 0:00:38]} 24. Qg3 {[%clk 0:00:42]}  Qd6 {[%clk 0:00:29]} 25. Bf4 {[%clk 0:00:34]}  Qd3 {[%clk 0:00:24]} 26. Bxe5 {[%clk 0:00:25]}  Qxc2 {[%clk 0:00:22]} 27. Nd4 {[%clk 0:00:16]}  Rxd4 {[%clk 0:00:20]} 28. Bxd4 {[%clk 0:00:15]} 0-1


[Site "https://www.chess.com"]

[Event "Titled Tuesday Blitz July 4 Early 2023"]
[White "Andreassen, Lars"]
[Black "lagarto93"]
[WhiteFideId "1504878"]
[WhiteElo "2239"]
[BlackElo "2552"]
[Result "1-0"]
[Round "4"]
[TimeControl "180+2"]
[Date "2023.07.04"]
[WhiteClock "0:01:02"]
[BlackClock "0:01:02"]
[Board "128"]

1. d4 {[%clk 0:03:00]}  e6 {[%clk 0:03:00]} 2. Nf3 {[%clk 0:03:01]}  Nf6 {[%clk 0:03:00]} 3. Bg5 {[%clk 0:02:59]}  d5 {[%clk 0:02:59]} 4. e3 {[%clk 0:03:00]}  c5 {[%clk 0:02:59]} 5. c3 {[%clk 0:02:57]}  Nbd7 {[%clk 0:02:59]} 6. Bd3 {[%clk 0:02:56]}  Be7 {[%clk 0:02:59]} 7. O-O {[%clk 0:02:53]}  Ne4 {[%clk 0:02:58]} 8. Bxe7 {[%clk 0:02:52]}  Qxe7 {[%clk 0:02:59]} 9. Nbd2 {[%clk 0:02:52]}  Nd6 {[%clk 0:02:58]} 10. Re1 {[%clk 0:02:18]}  O-O {[%clk 0:02:56]} 11. Qe2 {[%clk 0:02:10]}  c4 {[%clk 0:02:50]} 12. Bc2 {[%clk 0:02:09]}  f5 {[%clk 0:02:50]} 13. b3 {[%clk 0:02:06]}  b6 {[%clk 0:02:45]} 14. bxc4 {[%clk 0:02:03]}  Ba6 {[%clk 0:02:45]} 15. Bd3 {[%clk 0:02:00]}  dxc4 {[%clk 0:02:42]} 16. Nxc4 {[%clk 0:01:58]}  Bxc4 {[%clk 0:02:40]} 17. Bxc4 {[%clk 0:01:59]}  Rac8 {[%clk 0:02:39]} 18. Bb3 {[%clk 0:01:53]}  Rxc3 {[%clk 0:02:37]} 19. Rac1 {[%clk 0:01:49]}  Rfc8 {[%clk 0:02:37]} 20. Rxc3 {[%clk 0:01:49]}  Rxc3 {[%clk 0:02:38]} 21. Qd2 {[%clk 0:01:45]}  Ne4 {[%clk 0:02:36]} 22. Qb2 {[%clk 0:01:45]}  Ndf6 {[%clk 0:02:22]} 23. Rc1 {[%clk 0:01:42]}  Rxc1+ {[%clk 0:01:35]} 24. Qxc1 {[%clk 0:01:43]}  Nd6 {[%clk 0:01:26]} 25. Ne5 {[%clk 0:01:31]}  g6 {[%clk 0:01:17]} 26. f3 {[%clk 0:01:28]}  Nd5 {[%clk 0:01:14]} 27. Bxd5 {[%clk 0:01:21]}  exd5 {[%clk 0:01:15]} 28. Qc6 {[%clk 0:01:21]}  Qe6 {[%clk 0:01:14]} 29. Qa8+ {[%clk 0:01:06]}  Ne8 {[%clk 0:01:12]} 30. Qxa7 {[%clk 0:01:04]}  Qd6 {[%clk 0:01:02]} 31. Qf7+ {[%clk 0:01:02]} 1-0


[Site "https://www.chess.com"]

[Event "Titled Tuesday Blitz July 4 Early 2023"]
[White "Parpiev, Isaak"]
[Black "Kovacevic, Radmila"]
[WhiteFideId "34281576"]
[BlackFideId "933171"]
[WhiteElo "2547"]
[BlackElo "2216"]
[Result "1-0"]
[Round "4"]
[TimeControl "180+2"]
[Date "2023.07.04"]
[WhiteClock "0:00:52"]
[BlackClock "0:00:19"]
[Board "129"]

1. e4 {[%clk 0:02:51]}  e5 {[%clk 0:02:59]} 2. Nf3 {[%clk 0:02:50]}  d5 {[%clk 0:02:59]} 3. Nc3 {[%clk 0:02:51]}  dxe4 {[%clk 0:02:59]} 4. Nxe5 {[%clk 0:02:50]}  Bd6 {[%clk 0:02:58]} 5. d4 {[%clk 0:02:50]}  Bxe5 {[%clk 0:02:57]} 6. dxe5 {[%clk 0:02:50]}  Qxd1+ {[%clk 0:02:58]} 7. Nxd1 {[%clk 0:02:46]}  Nc6 {[%clk 0:02:58]} 8. Bf4 {[%clk 0:02:47]}  Nge7 {[%clk 0:02:57]} 9. Nc3 {[%clk 0:02:44]}  Ng6 {[%clk 0:02:53]} 10. Bg3 {[%clk 0:02:45]}  Ncxe5 {[%clk 0:02:51]} 11. Nxe4 {[%clk 0:02:44]}  f5 {[%clk 0:02:51]} 12. Bxe5 {[%clk 0:02:40]}  Nxe5 {[%clk 0:02:50]} 13. Nc3 {[%clk 0:02:40]}  O-O {[%clk 0:02:48]} 14. O-O-O {[%clk 0:02:40]}  Ng4 {[%clk 0:02:46]} 15. Rd2 {[%clk 0:02:38]}  Be6 {[%clk 0:02:44]} 16. h3 {[%clk 0:02:35]}  Nf6 {[%clk 0:02:38]} 17. Be2 {[%clk 0:02:29]}  Rad8 {[%clk 0:02:33]} 18. Rxd8 {[%clk 0:02:19]}  Rxd8 {[%clk 0:02:34]} 19. Bf3 {[%clk 0:02:20]}  c6 {[%clk 0:02:33]} 20. a4 {[%clk 0:02:11]}  Kf7 {[%clk 0:02:33]} 21. a5 {[%clk 0:02:11]}  Nd5 {[%clk 0:02:22]} 22. Na4 {[%clk 0:02:01]}  b5 {[%clk 0:02:04]} 23. Nc5 {[%clk 0:01:59]}  Bc8 {[%clk 0:02:00]} 24. Rd1 {[%clk 0:01:56]}  Ke7 {[%clk 0:01:57]} 25. Bxd5 {[%clk 0:01:47]}  Rxd5 {[%clk 0:01:55]} 26. Rxd5 {[%clk 0:01:45]}  cxd5 {[%clk 0:01:56]} 27. f4 {[%clk 0:01:31]}  d4 {[%clk 0:01:24]} 28. Kd2 {[%clk 0:01:29]}  Be6 {[%clk 0:01:20]} 29. Kd3 {[%clk 0:01:18]}  Bc4+ {[%clk 0:01:17]} 30. Kxd4 {[%clk 0:01:16]}  Bf1 {[%clk 0:01:17]} 31. Ke5 {[%clk 0:01:07]}  Bxg2 {[%clk 0:01:15]} 32. h4 {[%clk 0:01:07]}  Bh3 {[%clk 0:00:52]} 33. c3 {[%clk 0:01:07]}  Bg4 {[%clk 0:00:49]} 34. b4 {[%clk 0:01:00]}  Bh3 {[%clk 0:00:48]} 35. Nb3 {[%clk 0:01:01]}  g6 {[%clk 0:00:44]} 36. Nd4 {[%clk 0:01:01]}  a6 {[%clk 0:00:42]} 37. Nc6+ {[%clk 0:00:59]}  Kd7 {[%clk 0:00:39]} 38. Nb8+ {[%clk 0:01:00]}  Kc7 {[%clk 0:00:35]} 39. Nxa6+ {[%clk 0:01:01]}  Kb7 {[%clk 0:00:30]} 40. Nc5+ {[%clk 0:01:01]}  Ka7 {[%clk 0:00:31]} 41. Ne6 {[%clk 0:00:54]}  h6 {[%clk 0:00:27]} 42. Nf8 {[%clk 0:00:52]}  g5 {[%clk 0:00:27]} 43. fxg5 {[%clk 0:00:53]}  hxg5 {[%clk 0:00:28]} 44. hxg5 {[%clk 0:00:54]}  Bf1 {[%clk 0:00:24]} 45. Kxf5 {[%clk 0:00:52]}  Kb7 {[%clk 0:00:21]} 46. Ne6 {[%clk 0:00:49]}  Kc6 {[%clk 0:00:21]} 47. g6 {[%clk 0:00:49]}  Bd3+ {[%clk 0:00:20]} 48. Kf6 {[%clk 0:00:49]}  Kd5 {[%clk 0:00:19]} 49. Nf4+ {[%clk 0:00:49]}  Kc4 {[%clk 0:00:18]} 50. Nxd3 {[%clk 0:00:50]}  Kxd3 {[%clk 0:00:19]} 51. g7 {[%clk 0:00:51]}  Kxc3 {[%clk 0:00:20]} 52. g8=Q {[%clk 0:00:52]}  Kxb4 {[%clk 0:00:19]} 53. a6 {[%clk 0:00:52]} 1-0


[Site "https://www.chess.com"]

[Event "Titled Tuesday Blitz July 4 Early 2023"]
[White "Svane, Frederik"]
[Black "Streltsov, Alexey"]
[WhiteFideId "12923044"]
[BlackFideId "24104434"]
[WhiteElo "2808"]
[BlackElo "2427"]
[Result "1-0"]
[Round "4"]
[TimeControl "180+2"]
[Date "2023.07.04"]
[WhiteClock "0:01:49"]
[BlackClock "0:01:46"]
[Board "132"]

1. g3 {[%clk 0:03:00]}  d5 {[%clk 0:03:00]} 2. Bg2 {[%clk 0:03:01]}  e5 {[%clk 0:03:00]} 3. d3 {[%clk 0:03:02]}  Nc6 {[%clk 0:03:01]} 4. Nf3 {[%clk 0:03:02]}  Be6 {[%clk 0:03:01]} 5. O-O {[%clk 0:03:02]}  Qd7 {[%clk 0:03:02]} 6. Ng5 {[%clk 0:03:01]}  Bg4 {[%clk 0:03:02]} 7. h3 {[%clk 0:03:01]}  Bh5 {[%clk 0:03:03]} 8. g4 {[%clk 0:02:58]}  Bg6 {[%clk 0:03:03]} 9. e4 {[%clk 0:02:59]}  Nf6 {[%clk 0:02:58]} 10. exd5 {[%clk 0:02:58]}  Nxd5 {[%clk 0:02:59]} 11. Nc3 {[%clk 0:02:59]}  Nxc3 {[%clk 0:02:53]} 12. bxc3 {[%clk 0:02:58]}  f6 {[%clk 0:02:50]} 13. Ne4 {[%clk 0:02:57]}  h5 {[%clk 0:02:51]} 14. Rb1 {[%clk 0:02:56]}  hxg4 {[%clk 0:02:50]} 15. hxg4 {[%clk 0:02:54]}  Rb8 {[%clk 0:02:44]} 16. Qf3 {[%clk 0:02:51]}  Bd6 {[%clk 0:02:42]} 17. Be3 {[%clk 0:02:42]}  O-O {[%clk 0:02:29]} 18. Ng3 {[%clk 0:02:31]}  Nd8 {[%clk 0:02:26]} 19. Nf5 {[%clk 0:02:22]}  b6 {[%clk 0:02:15]} 20. Nxd6 {[%clk 0:02:04]}  cxd6 {[%clk 0:02:14]} 21. a4 {[%clk 0:02:04]}  Qxa4 {[%clk 0:02:11]} 22. Qd5+ {[%clk 0:02:03]}  Bf7 {[%clk 0:02:11]} 23. Qxd6 {[%clk 0:02:03]}  Qxc2 {[%clk 0:02:10]} 24. Qxb8 {[%clk 0:02:02]}  Qxc3 {[%clk 0:02:08]} 25. Qxa7 {[%clk 0:02:01]}  Qxd3 {[%clk 0:02:09]} 26. Qxb6 {[%clk 0:02:01]}  Qg6 {[%clk 0:02:10]} 27. Qb4 {[%clk 0:01:56]}  Ne6 {[%clk 0:02:10]} 28. Qe4 {[%clk 0:01:56]}  Nf4 {[%clk 0:02:01]} 29. Bxf4 {[%clk 0:01:54]}  exf4 {[%clk 0:01:59]} 30. Qxf4 {[%clk 0:01:55]}  Be6 {[%clk 0:01:46]} 31. Bf3 {[%clk 0:01:49]} 1-0


[Site "https://www.chess.com"]

[Event "Titled Tuesday Blitz July 4 Early 2023"]
[White "Hoffmann, Asa"]
[Black "Hambleton, Aman"]
[WhiteFideId "2001470"]
[BlackFideId "2606577"]
[WhiteElo "2423"]
[BlackElo "2774"]
[Result "0-1"]
[Round "4"]
[TimeControl "180+2"]
[Date "2023.07.04"]
[WhiteClock "0:00:50"]
[BlackClock "0:00:04"]
[Board "134"]

1. d4 {[%clk 0:02:53]}  e5 {[%clk 0:02:55]} 2. Nf3 {[%clk 0:02:52]}  e4 {[%clk 0:02:55]} 3. Nfd2 {[%clk 0:02:51]}  d5 {[%clk 0:02:55]} 4. Nb3 {[%clk 0:02:49]}  Bd6 {[%clk 0:02:51]} 5. g3 {[%clk 0:02:44]}  Nf6 {[%clk 0:02:09]} 6. Bg2 {[%clk 0:02:39]}  c6 {[%clk 0:02:01]} 7. Bg5 {[%clk 0:02:35]}  h6 {[%clk 0:02:01]} 8. Bxf6 {[%clk 0:02:34]}  Qxf6 {[%clk 0:02:02]} 9. e3 {[%clk 0:02:34]}  h5 {[%clk 0:01:52]} 10. N1d2 {[%clk 0:02:32]}  h4 {[%clk 0:01:46]} 11. Qe2 {[%clk 0:02:28]}  Qg6 {[%clk 0:01:22]} 12. O-O-O {[%clk 0:02:18]}  h3 {[%clk 0:00:49]} 13. Bf1 {[%clk 0:02:10]}  Bg4 {[%clk 0:00:48]} 14. Qe1 {[%clk 0:01:59]}  Bxd1 {[%clk 0:00:41]} 15. Qxd1 {[%clk 0:01:58]}  Nd7 {[%clk 0:00:35]} 16. Be2 {[%clk 0:01:58]}  f5 {[%clk 0:00:25]} 17. c4 {[%clk 0:01:57]}  Nf6 {[%clk 0:00:24]} 18. Kb1 {[%clk 0:01:53]}  O-O {[%clk 0:00:13]} 19. a3 {[%clk 0:01:41]}  Kh8 {[%clk 0:00:10]} 20. Ka2 {[%clk 0:01:41]}  a6 {[%clk 0:00:02]} 21. Nb1 {[%clk 0:01:40]}  b5 {[%clk 0:00:02]} 22. cxd5 {[%clk 0:01:40]}  cxd5 {[%clk 0:00:02]} 23. Nc3 {[%clk 0:01:38]}  Rfc8 {[%clk 0:00:02]} 24. Qd2 {[%clk 0:01:37]}  Rab8 {[%clk 0:00:02]} 25. Rc1 {[%clk 0:01:36]}  b4 {[%clk 0:00:02]} 26. Nb1 {[%clk 0:01:34]}  bxa3 {[%clk 0:00:02]} 27. bxa3 {[%clk 0:01:31]}  Qe8 {[%clk 0:00:03]} 28. Bxa6 {[%clk 0:01:24]}  Rxc1 {[%clk 0:00:03]} 29. Qxc1 {[%clk 0:01:17]}  Qa4 {[%clk 0:00:03]} 30. Qc3 {[%clk 0:01:04]}  Qxa6 {[%clk 0:00:03]} 31. N1d2 {[%clk 0:01:03]}  Ng4 {[%clk 0:00:03]} 32. Nc5 {[%clk 0:01:00]}  Bxc5 {[%clk 0:00:02]} 33. dxc5 {[%clk 0:01:00]}  Qd3 {[%clk 0:00:02]} 34. Qxd3 {[%clk 0:00:59]}  exd3 {[%clk 0:00:03]} 35. c6 {[%clk 0:00:57]}  Nxh2 {[%clk 0:00:03]} 36. c7 {[%clk 0:00:55]}  Rc8 {[%clk 0:00:04]} 37. Kb3 {[%clk 0:00:54]}  Ng4 {[%clk 0:00:04]} 38. Kc3 {[%clk 0:00:54]}  h2 {[%clk 0:00:04]} 39. Nf3 {[%clk 0:00:53]}  h1=Q {[%clk 0:00:05]} 40. Ng5 {[%clk 0:00:53]}  Rxc7+ {[%clk 0:00:04]} 41. Kd4 {[%clk 0:00:52]}  Rc4+ {[%clk 0:00:03]} 42. Kxd3 {[%clk 0:00:50]}  Qd1# {[%clk 0:00:04]} 0-1


[Site "https://www.chess.com"]

[Event "Titled Tuesday Blitz July 4 Early 2023"]
[White "realmadridfc123"]
[Black "Ladan, Nicholas"]
[BlackFideId "30918855"]
[WhiteElo "2753"]
[BlackElo "2423"]
[Result "0-1"]
[Round "4"]
[TimeControl "180+2"]
[Date "2023.07.04"]
[WhiteClock "0:00:04"]
[BlackClock "0:00:03"]
[Board "135"]

1. e4 {[%clk 0:03:00]}  e5 {[%clk 0:02:59]} 2. Nf3 {[%clk 0:03:00]}  Nc6 {[%clk 0:02:59]} 3. Bb5 {[%clk 0:03:00]}  a6 {[%clk 0:02:59]} 4. Ba4 {[%clk 0:03:01]}  Nge7 {[%clk 0:02:59]} 5. c3 {[%clk 0:02:58]}  Ng6 {[%clk 0:02:57]} 6. d4 {[%clk 0:02:57]}  b5 {[%clk 0:02:56]} 7. Bb3 {[%clk 0:02:54]}  exd4 {[%clk 0:02:48]} 8. cxd4 {[%clk 0:02:54]}  Bb4+ {[%clk 0:02:48]} 9. Nc3 {[%clk 0:02:53]}  O-O {[%clk 0:02:47]} 10. O-O {[%clk 0:02:53]}  d6 {[%clk 0:02:46]} 11. Bg5 {[%clk 0:02:40]}  Qe8 {[%clk 0:02:42]} 12. Nd5 {[%clk 0:02:34]}  Ba5 {[%clk 0:02:37]} 13. Rc1 {[%clk 0:02:33]}  Bg4 {[%clk 0:02:26]} 14. Be3 {[%clk 0:02:29]}  Nh4 {[%clk 0:02:22]} 15. Nxc7 {[%clk 0:02:19]}  Bxc7 {[%clk 0:02:15]} 16. Bd5 {[%clk 0:02:20]}  Qc8 {[%clk 0:01:55]} 17. Bg5 {[%clk 0:01:43]}  Nxf3+ {[%clk 0:01:19]} 18. gxf3 {[%clk 0:01:43]}  Bh3 {[%clk 0:01:10]} 19. Re1 {[%clk 0:01:43]}  Ba5 {[%clk 0:00:47]} 20. Rxc6 {[%clk 0:01:34]}  Qd7 {[%clk 0:00:47]} 21. Re3 {[%clk 0:01:30]}  Rac8 {[%clk 0:00:43]} 22. Qc2 {[%clk 0:01:26]}  Rxc6 {[%clk 0:00:30]} 23. Qxc6 {[%clk 0:01:24]}  Rc8 {[%clk 0:00:17]} 24. Rc3 {[%clk 0:01:05]}  Rxc6 {[%clk 0:00:16]} 25. Rxc6 {[%clk 0:01:06]}  h6 {[%clk 0:00:14]} 26. Bf4 {[%clk 0:01:06]}  Qe7 {[%clk 0:00:09]} 27. Rxa6 {[%clk 0:01:02]}  Be1 {[%clk 0:00:09]} 28. Bxd6 {[%clk 0:00:58]}  Qh4 {[%clk 0:00:08]} 29. Bg3 {[%clk 0:00:58]}  Qg5 {[%clk 0:00:08]} 30. Ra8+ {[%clk 0:00:55]}  Kh7 {[%clk 0:00:08]} 31. Bxf7 {[%clk 0:00:42]}  Qf6 {[%clk 0:00:06]} 32. Bg8+ {[%clk 0:00:33]}  Kg6 {[%clk 0:00:06]} 33. f4 {[%clk 0:00:23]}  Bxf2+ {[%clk 0:00:04]} 34. Bxf2 {[%clk 0:00:19]}  Qxf4 {[%clk 0:00:04]} 35. Ra6+ {[%clk 0:00:17]}  Kh5 {[%clk 0:00:03]} 36. Ra3 {[%clk 0:00:05]}  Qc1+ {[%clk 0:00:02]} 37. Be1 {[%clk 0:00:04]}  Qxe1# {[%clk 0:00:03]} 0-1


[Site "https://www.chess.com"]

[Event "Titled Tuesday Blitz July 4 Early 2023"]
[White "Disconzi da Silva, Rodrigo"]
[Black "Shuvalova, Polina"]
[WhiteFideId "2100991"]
[BlackFideId "24171760"]
[WhiteElo "2423"]
[BlackElo "2714"]
[Result "1-0"]
[Round "4"]
[TimeControl "180+2"]
[Date "2023.07.04"]
[WhiteClock "0:00:19"]
[BlackClock "0:00:18"]
[Board "136"]

1. d4 {[%clk 0:03:00]}  Nf6 {[%clk 0:02:59]} 2. c4 {[%clk 0:02:59]}  e6 {[%clk 0:02:59]} 3. Nc3 {[%clk 0:02:58]}  d5 {[%clk 0:03:00]} 4. Nf3 {[%clk 0:02:55]}  c5 {[%clk 0:02:58]} 5. e3 {[%clk 0:02:54]}  Nc6 {[%clk 0:02:58]} 6. a3 {[%clk 0:02:54]}  a6 {[%clk 0:02:44]} 7. dxc5 {[%clk 0:02:54]}  Bxc5 {[%clk 0:02:42]} 8. b4 {[%clk 0:02:54]}  Ba7 {[%clk 0:02:43]} 9. Bb2 {[%clk 0:02:54]}  O-O {[%clk 0:02:42]} 10. Qc2 {[%clk 0:02:54]}  Qe7 {[%clk 0:02:38]} 11. Rd1 {[%clk 0:02:53]}  Rd8 {[%clk 0:02:34]} 12. Be2 {[%clk 0:02:37]}  d4 {[%clk 0:02:28]} 13. exd4 {[%clk 0:02:34]}  Nxd4 {[%clk 0:02:28]} 14. Nxd4 {[%clk 0:02:34]}  Bxd4 {[%clk 0:02:28]} 15. O-O {[%clk 0:02:22]}  e5 {[%clk 0:02:27]} 16. Bf3 {[%clk 0:02:14]}  Be6 {[%clk 0:02:25]} 17. c5 {[%clk 0:01:37]}  Rac8 {[%clk 0:02:23]} 18. Rfe1 {[%clk 0:01:28]}  h6 {[%clk 0:02:15]} 19. Ne4 {[%clk 0:01:27]}  Nxe4 {[%clk 0:02:13]} 20. Bxe4 {[%clk 0:01:25]}  Qf6 {[%clk 0:01:58]} 21. Bxb7 {[%clk 0:01:19]}  Rc7 {[%clk 0:01:52]} 22. Bxa6 {[%clk 0:01:17]}  Bf5 {[%clk 0:01:40]} 23. Qe2 {[%clk 0:01:11]}  Bg4 {[%clk 0:01:34]} 24. Qxg4 {[%clk 0:00:57]}  Qxf2+ {[%clk 0:01:32]} 25. Kh1 {[%clk 0:00:57]}  Qxb2 {[%clk 0:01:32]} 26. Bd3 {[%clk 0:00:47]}  Qxa3 {[%clk 0:01:26]} 27. Qe4 {[%clk 0:00:40]}  g6 {[%clk 0:01:21]} 28. Rb1 {[%clk 0:00:39]}  Qc3 {[%clk 0:01:02]} 29. Rf1 {[%clk 0:00:39]}  Kg7 {[%clk 0:00:53]} 30. Bc2 {[%clk 0:00:25]}  f5 {[%clk 0:00:46]} 31. Qe2 {[%clk 0:00:25]}  e4 {[%clk 0:00:44]} 32. Rb3 {[%clk 0:00:23]}  Qxb3 {[%clk 0:00:31]} 33. Bxb3 {[%clk 0:00:23]}  Bc3 {[%clk 0:00:32]} 34. Qc4 {[%clk 0:00:21]}  Rd3 {[%clk 0:00:25]} 35. g4 {[%clk 0:00:21]}  e3 {[%clk 0:00:25]} 36. gxf5 {[%clk 0:00:21]}  e2 {[%clk 0:00:23]} 37. f6+ {[%clk 0:00:20]}  Kf8 {[%clk 0:00:22]} 38. Rg1 {[%clk 0:00:20]}  e1=Q {[%clk 0:00:18]} 39. Qg8# {[%clk 0:00:19]} 1-0


[Site "https://www.chess.com"]